Cogmind - Beta 13 @@@ ROGUE MODE // 2024.03.18 @ 08:18:09 Player: Grim Result: Destroyed by Y-45 Defender with Heavy Assault Rifle Performance ------------- Evolutions (1) 500 Regions Visited (3) 600 Robots Destroyed (47) 235 Value Destroyed (1206) 1206 Prototype IDs (1) 20 Alien Tech Used (0) 0 Bonus (40) 40 TOTAL SCORE: 2601 Bonus ------- High Alert Combat Kills 40 Cogmind --------- Core Integrity 0/400 Matter 260/300 Energy 366/500 System Corruption 4% Temperature Danger (451) Movement Walking (190) Ox1 Location -9/Storage Parts ------- > --- POWER (2) -------- Ion Engine > --- PROPULSION (2) --- Aluminum Leg > --- UTILITY (3) ------ High-capacity Battery Improved Targeting Computer > --- WEAPON (2) ------- Beam Rifle Beam Cannon > --- INVENTORY (5) ---- Light Armor Plating Peak State ------------ > --- POWER ------------ Ion Engine Light Ion Engine > --- PROPULSION ------- Light Treads Light Treads > --- UTILITY ---------- Visual Processing Unit Signal Interpreter Improved Terrain Scanner > --- WEAPON ----------- Beam Rifle Light Assault Rifle > --- INVENTORY -------- Armored Wheel High-capacity Battery ECM Suite Light Armor Plating Grenade Launcher [Rating: 13] Favorites ----------- Power Ion Engine Engine Ion Engine Propulsion Light Treads Treads Light Treads Leg Aluminum Leg Utility Visual Processing Unit Device Improved Terrain Scanner Storage High-capacity Battery Processor Visual Processing Unit Protection Hardened Light Armor Plating Weapon Small Laser Energy Gun Small Laser Energy Cannon Beam Cannon Ballistic Gun Light Assault Rifle Launcher Grenade Launcher Build | -11 -10 -9 -9 ------- Run | Yrd Mat Mat Sto Slots Evolved 2 | . . 2 . Power 1 | . . 1 . Propulsion . | . . . . Utility 1 | . . 1 . Weapon . | . . . . Parts Attached 47 | 7 4 12 24 Power 8 | 1 . 3 4 Engine 8 | 1 . 3 4 Core . | . . . . Reactor . | . . . . Propulsion 9 | 2 . 2 5 Treads 8 | 2 . 2 4 Leg 1 | . . . 1 Wheel . | . . . . Hover . | . . . . Flight . | . . . . Utility 13 | 2 2 3 6 Device 6 | 1 1 2 2 Storage 2 | 1 . . 1 Processor 3 | . 1 1 1 Hackware . | . . . . Protection 2 | . . . 2 Artifact . | . . . . Weapon 17 | 2 2 4 9 Energy Gun 10 | 1 1 2 6 Energy Cannon 1 | . . . 1 Ballistic Gun 3 | 1 . 1 1 Ballistic Cannon . | . . . . Launcher 3 | . 1 1 1 Special Weapon . | . . . . Impact Weapon . | . . . . Slashing Weapon . | . . . . Piercing Weapon . | . . . . Special Melee Weapon . | . . . . Unidentified Prototypes 1 | . . . 1 Parts Lost 23 | . . 5 18 Power 6 | . . 2 4 Propulsion 5 | . . . 5 Utility 6 | . . 2 4 Weapon 6 | . . 1 5 Highest Loss Streak 8 | . . 2 8 To Critical Strikes . | . . . . Average Slot Usage (%) 90 | . 95 89 88 Engine 17 | . 14 19 17 Treads 18 | . 23 15 19 Device 9 | . 14 11 6 Storage 4 | . 4 . 8 Processor 13 | . 9 20 8 Protection 2 | . . . 7 Energy Gun 16 | . 23 11 15 Ballistic Gun 3 | . 2 6 2 Launcher 1 | . 1 3 . Naked Turns . | . . . . Heaviest Build 24 | 13 15 17 24 Greatest Support 40 | 40 40 40 40 Greatest Overweight (x) 7 | . . . 7 Average Overweight (x) . | . . . . Largest Inventory Capacity 8 | 8 8 5 5 Average Capacity 5 | 7 5 5 5 Most Carried 5 | 5 5 5 5 Average Carried 3 | . 2 4 3 Final Capacity 8 | 8 5 5 5 Final Carried 5 | . 5 4 1 Class Distribution -------------------- 54% | Scavenger-Mutant 38% | Mutant 5% | Scavenger-Skirmisher Dominant Class ---------------- Mutant | -10/Materials Scavenger-Mutant | -9/Materials Scavenger-Mutant | -9/Storage Resources | -11 -10 -9 -9 ----------- Run | Yrd Mat Mat Sto Matter Collected 724 | 91 104 227 302 Remotely . | . . . . Salvage Created 1376 | 96 66 421 793 Parts 89 | 6 7 32 44 Haulers Intercepted . | . . . . Recyclers Shooed 3 | . . 2 1 Parts Field Recycled . | . . . . Retrieved Matter . | . . . . Parts Self-Destructed . | . . . . Prevented . | . . . . Kills | -11 -10 -9 -9 ------- Run | Yrd Mat Mat Sto Combat Hostiles Destroyed 35 | . 2 13 20 Guns 24 | . . 6 18 AOE 9 | . 2 7 . Classes Destroyed 9 | 2 2 3 2 Worker 1 | . . . 1 Builder 1 | . . 1 . Tunneler 3 | 2 1 . . Recycler 2 | 1 . 1 . Operator 1 | . . . 1 Watcher 4 | . 1 2 1 Swarmer 9 | . . 5 4 Grunt 19 | . 2 4 13 Sentry 7 | . . 4 3 Best Kill Streak 5 | 2 4 5 5 Combat Bots Only 5 | . 2 4 5 Max Kills in Single Turn 2 | 1 2 2 2 Gunslinging 1 | . . . 1 Exploded 2 | . 1 2 . Melee . | . . . . Uniques/NPCs Destroyed . | . . . . Combat | -11 -10 -9 -9 -------- Run | Yrd Mat Mat Sto Hostile Shots Fired 276 | . 6 74 196 Missed 74 | . 3 22 49 Damage Taken 2465 | . 38 573 1854 Core 410 | . . 161 249 Absorbed by Shields . | . . . . Regen/Repaired (Parts) 26 | . 26 . . Core Remaining (%) 100 | 100 100 . . Volleys Fired 124 | 8 4 35 77 Largest 2 | 2 2 2 2 Hottest 116 | 60 70 105 116 Shots Fired 221 | 16 8 65 132 Gun 194 | 16 4 53 121 Cannon 11 | . . . 11 Launcher 16 | . 4 12 . Special . | . . . . Kinetic 46 | 8 . 15 23 Thermal 159 | 8 4 38 109 Explosive 16 | . 4 12 . Electromagnetic . | . . . . Robot Hit Streak 7 | 3 4 7 6 Robot Miss Streak 3 | 3 2 3 3 Penetration Max . | . . . . Secondary Targets 4 | . . 1 3 Max Gunslinging Chain 1 | . . 1 1 Shots Hit Robots 122 | 8 2 31 81 Core Hits 79 | 4 10 30 35 Critical Kills . | . . . . Critical Parts Destroyed . | . . . . Critical Strikes 9 | . . . 9 Burn 9 | . . . 9 Melee Attacks . | . . . . Impact . | . . . . Slashing . | . . . . Piercing . | . . . . Sneak Attacks . | . . . . Combat Hostiles . | . . . . Follow-up Attacks . | . . . . Damage Inflicted 2267 | 71 259 790 1147 Guns 1425 | 71 12 284 1058 Cannons 89 | . . . 89 Explosions 738 | . 247 491 . Melee . | . . . . Ramming 15 | . . 15 . Kinetic 292 | 18 . 50 224 Thermal 1222 | 53 12 234 923 Explosive 738 | . 247 491 . Electromagnetic . | . . . . Impact . | . . . . Slashing . | . . . . Piercing . | . . . . Highest Corruption 4 | . . . 4 Average Corruption 4 | . . . 4 Corruption Purged . | . . . . Corruption Blocked . | . . . . Overload Shots . | . . . . Overflow Damage 35 | . . 35 . Projectiles . | . . . . Explosions 35 | . . 35 . Melee . | . . . . Knockbacks . | . . . . Impact . | . . . . Kinetic . | . . . . Secondary . | . . . . Self-Inflicted Damage 39 | . . 39 . Shots 2 | . . 2 . Rammed 3 | . . 2 1 Targets Rammed 3 | . . 2 1 Kicked . | . . . . Crushed . | . . . . Highest Temperature 539 | 20 39 137 539 Average Temperature 131 | 14 15 38 182 Received Heat Transfer 768 | . 21 129 618 Effects 18 | . . . 18 Shutdowns 6 | . . . 6 Energy Bleed 3 | . . . 3 Interference 4 | . . . 4 Short Circuit 4 | . . . 4 Damage (minor) 1 | . . . 1 Siege Activations . | . . . . Robots Corrupted . | . . . . Combat Hostiles . | . . . . Parts Fried . | . . . . Impact Corruptions . | . . . . Robots Melted 2 | . . . 2 Combat Hostiles 2 | . . . 2 Parts Melted 5 | . . . 5 Heat Transferred 3685 | 125 25 546 2989 Parts Sabotaged . | . . . . Parts Stolen . | . . . . Parts Stripped . | . . . . Power Chain Reactions . | . . . . Alert | -11 -10 -9 -9 ------- Run | Yrd Mat Mat Sto Peak Influence 452 | 15 108 372 452 Initial 137 | . 9 45 137 Average 194 | 4 85 196 297 Maximum Alert Level 2 | . . 1 2 Low Security (%) 55 | 100 100 56 17 Level 1 40 | . . 43 71 Level 2 4 | . . . 10 Level 3 . | . . . . Level 4 . | . . . . Level 5 . | . . . . High Security . | . . . . Max Security . | . . . . Squads Dispatched 8 | . . 2 6 Investigation 1 | . . . 1 Extermination . | . . . . Reinforcement 3 | . . 2 1 Assault . | . . . . Garrison 4 | . . . 4 Intercept . | . . . . Searches Triggered . | . . . . Construction Impeded . | . . . . Haulers Reinforced . | . . . . Active Scanning Responses . | . . . . Cargo Convoy Interrupts . | . . . . Stealth | -11 -10 -9 -9 --------- Run | Yrd Mat Mat Sto Distress Signals 4 | . 1 . 3 Communications Jammed . | . . . . Distress Signals . | . . . . Times Spotted 56 | . 3 21 32 Peak Tracking Total 8 | . 3 6 8 Tactical Retreats 2 | . . 2 . Traps | -11 -10 -9 -9 ------- Run | Yrd Mat Mat Sto Traps Triggered 1 | . . . 1 Indirectly . | . . . . Trap Hack Attempts . | . . . . Triggered . | . . . . Disarmed . | . . . . Reprogrammed . | . . . . Reused . | . . . . Traps Extracted . | . . . . Installed . | . . . . Triggered . | . . . . Machines | -11 -10 -9 -9 ---------- Run | Yrd Mat Mat Sto Machines Disabled 1 | . . 1 . Max in Single Turn 1 | . . 1 . Machines Repaired . | . . . . Machines Dismantled . | . . . . Machines Sabotaged . | . . . . Overloaded Fab Kills . | . . . . Hacking | -11 -10 -9 -9 --------- Run | Yrd Mat Mat Sto Machines Accessed 6 | . 2 3 1 Terminals 4 | . 1 2 1 Fabricators . | . . . . Repair Stations 1 | . 1 . . Recycling Units 1 | . . 1 . Scanalyzers . | . . . . Garrison Access . | . . . . Total Hacks 19 | . 9 9 1 Successful 13 | . 5 7 1 Failed 6 | . 4 2 . Catastrophic . | . . . . Database Lockouts . | . . . . Manual . | . . . . Terminals 11 | . 4 6 1 Fabricators . | . . . . Repair Stations 5 | . 5 . . Recycling Units 3 | . . 3 . Scanalyzers . | . . . . Garrison Access . | . . . . Terminal Hacks 8 | . 3 4 1 Record 1 | . 1 . . Open Door 1 | . . . 1 Alert Level 1 | . . 1 . Locate Traps 1 | . 1 . . Maintenance Status 1 | . 1 . . Patrol Status 1 | . . 1 . Zone Layout 2 | . . 2 . Fabricator Hacks . | . . . . Repair Station Hacks 2 | . 2 . . Scan Component 1 | . 1 . . Repair 1 | . 1 . . Recycling Unit Hacks 3 | . . 3 . Process 1 | . . 1 . Retrieve Matter 1 | . . 1 . Retrieve Components 1 | . . 1 . Scanalyzer . | . . . . Garrison Access Hacks . | . . . . Unauthorized Hacks . | . . . . Terminals . | . . . . Fabricators . | . . . . Repair Stations . | . . . . Recycling Units . | . . . . Scanalyzers . | . . . . Garrison Access . | . . . . Data Cores Recovered 1 | . . . 1 Used . | . . . . Hacking Detections 6 | . 2 3 1 Full Trace Events . | . . . . Feedback Events . | . . . . Feedback Blocked . | . . . . Robot Schematics Acquired . | . . . . Robots Built . | . . . . Authchips . | . . . . Time . | . . . . Total Robot Build Rating . | . . . . Part Schematics Acquired . | . . . . Parts Built . | . . . . Authchips . | . . . . Time . | . . . . Total Part Build Rating . | . . . . Parts Repaired 1 | . 1 . . Time 26 | . 26 . . Parts Recycled . | . . . . Recycled Matter 137 | . . 137 . Retrieved Matter 137 | . . 137 . Retrieved Components . | . . . . Parts Scanalyzed . | . . . . Part Schematics Acquired . | . . . . Parts Damaged . | . . . . Bothacking | -11 -10 -9 -9 ------------ Run | Yrd Mat Mat Sto Used RIF Installer . | . . . . Robots Hacked . | . . . . Non-combat . | . . . . Combat . | . . . . Robot Hacks Applied . | . . . . Relay Couplers Released . | . . . . Fabnet Peak Effective % . | . . . . Robots Rewired . | . . . . Allies Hacked . | . . . . Hacks Repelled . | . . . . Allies | -11 -10 -9 -9 -------- Run | Yrd Mat Mat Sto Total Allies . | . . . . Largest Group . | . . . . Highest-Rated Group . | . . . . Highest-Rated Ally . | . . . . Total Orders . | . . . . Ally Attacks . | . . . . Total Damage . | . . . . Kills . | . . . . Allies Corrupted . | . . . . Allies Melted . | . . . . Intel | -11 -10 -9 -9 ------- Run | Yrd Mat Mat Sto Robot Analysis Total . | . . . . Derelict Logs Recovered . | . . . . Drone Launches . | . . . . Drone Recoveries . | . . . . Exploration | -11 -10 -9 -9 ------------- Run | Yrd Mat Mat Sto Turns Passed 1665 | 122 381 536 626 Spaces Moved 768 | 62 223 259 224 Core 13 | 11 . . 2 Treads 755 | 51 223 259 222 Legs . | . . . . Wheels . | . . . . Hover . | . . . . Flight . | . . . . Fastest Speed 50 | 50 160 160 160 Average Speed 160 | 140 160 160 166 Slowest Speed 400 | 160 160 160 400 Overloaded Moves . | . . . . Propulsion Burnouts . | . . . . Robots Hopped . | . . . . Cave-ins Triggered . | . . . . Exploration Rate (%) 24 | 5 29 28 34 Regions Visited 3 Branch Regions 1 Pre-discovered Areas . | . . . . Known Exits Taken 1 | . . 1 . Unknown Exits Taken 2 | 1 1 . . Scrap Searched . | . . . . Spaces Dug . | . . . . Terrain Destroyed 84 | . 22 62 . Melee . | . . . . Projectile . | . . . . AOE 84 | . 22 62 . Terrain Rammed . | . . . . Walls Destroyed . | . . . . Machines Disabled . | . . . . Actions | -11 -10 -9 -9 --------- Run | Yrd Mat Mat Sto Total 991 | 82 239 319 351 Wait . | . . . . Move 765 | 61 222 258 224 Hop . | . . . . Pick Up 39 | 6 7 7 19 Fast Attach 3 | 1 . 2 . Attach 33 | 6 1 6 20 Detach . | . . . . Swap 11 | . 3 4 4 Drop 13 | . 2 5 6 Fire 124 | 8 4 35 77 Melee . | . . . . Ram . | . . . . Kick . | . . . . Crush 3 | . . 2 1 Escape Stasis . | . . . . Rewire . | . . . . Trap . | . . . . Miscellaneous . | . . . . Route ------- -11/Scrapyard -10/Materials -9/Materials (discovered 2 exits: [*Mat] / *Sto) -9/Storage History --------- Turn | Location | Event 5 | -11/Scrapyard | Discovered new exit (range 14) 123 | -11/Scrapyard | Entered Materials 313 | -10/Materials | Build established: Mutant 425 | -10/Materials | Repaired Lgt. Treads? 486 | -10/Materials | Discovered new exit (range 5) 504 | -10/Materials | Entered another Materials area 504 | -9/Materials | Evolved 2 slots: Power x1, Utility x1 961 | -9/Materials | Build established: Scavenger-Mutant 986 | -9/Materials | Discovered new exit (range 10) 998 | -9/Materials | Discovered new exit (range 11) 1039 | -9/Materials | Identified exit to Storage 1040 | -9/Materials | Entered Storage 1203 | -9/Storage | Core integrity fell below 50% 1313 | -9/Storage | Garrison activated, responded to threat 1402 | -9/Storage | Core integrity fell below 20% 1421 | -9/Storage | Garrison activated, responded to threat 1426 | -9/Storage | Lost 8 parts (2p2n1u3w) 1666 | -9/Storage | Destroyed by Y-45 Defender with Heavy Assault Rifle Last Messages --------------- 01619_ R-06 Scavenger collects Heat Sink. 01623_ R-06 Scavenger collects Sml. Laser. 01626_ K-01 Serf collects debris. 01635_ G-34 Mercenary destroyed. 01648_ G-34 Mercenary suffers critical hit (Burn). 01649_ G-34 Mercenary critical meltdown. 01649_ K-01 Serf collects debris. 01650_ Heat Sink destroyed. 01650_ System corrupted by crushing effect (+4). 01653_ K-01 Serf collects debris. 01654_ Lgt. Ion Engine destroyed. 01655_ Lgt. Treads destroyed. 01657_ Overheating: Energy bleed (-117). 01660_ Lgt. Treads destroyed. 01660_ Imp. Medium Laser severed. 01661_ Knocked back. 01663_ Rocket Launcher destroyed. 01664_ Hrd. Light Armor Plating destroyed. 01665_ Power failure, Ion Engine shutdown. Map ----- +----------------------------------------------------+ | ??????????# ## #?????????????????? | | ??????????# ## #?#???????????????? | | ??????????# #####+####+###T#"??????????????? | | ??????????# |#### ^ "??????????????? | | ??????????# + ^ "??????????????? | | ##????????# [ !# #####"??????????????? | | ????########+## ###########?????????? | | ????? / ??#== + ]/ #?????????? | | ??????# ?#== # #?????????? | | #?????????# ?#= # #?????????? | | ??????????# # # =[ #?????????? | | ??????????# [% # # """%""" #?????????? | | ??????????#! + # """!=G" #?????????? | | #?????????# # # """ """ #?????????? | | ????????#! ] # + #?????????? | | # "???????# ?# ############?????????? | | ? ""??????# ?# #???? #?????????????? | | ?? ?????# ??# ### #?????????????? | | ####+############## + #?????????????? | | + %= # #?????????????? | | # #####+##+###+## #?? #?????????????? | | "" # #??# %##w#????#?????????????? | | "" + #??# ##/##########?????????? | | "" ####### #??# # #?????????? | | #?????# #??# %! #lb ==#?????????? | | #?????# #??# % !!#@ *[Y% ?????? | | ####?????#+#??#%"T" [!!!# ! %# ?????? | | ??????????????# """ %!! # ! ! #?????????? | | ??????????????#=% =! #############?????????? | | ??????????????###### ####?????????????????????? | | ???????????????????###????????????????????????? | | ??????????????????????????????????????????????? | | ??????????????????????????????????????????????? | | ??????????????????????????????????????????????? | | ??????????????????????????????????????????????? | | ??????????????????????????????????????????????? | | ??????????????????????????????????????????????? | | ??????????????????????????????????????????????? | | ??????????????????????????????????????????????? | | ??????????????????????????????????????????????? | | ??????????????????????????????????????????????? | | ??????????????????????????????????????????????? | | ??????????????????????????????????????????????? | | ??????????????????????????????????????????????? | | ??????????????????????????????????????????????? | | ??????????????????????????????????????????????? | | ??????????????????????????????????????????????? | | ??????????????????????????????????????????????? | | ??????????????????????????????????????????????? | | ??????????????????????????????????????????????? | +----------------------------------------------------+ Best States ------------- Heat Dissipation 38 Energy Generation 17 Energy Capacity 650 Matter Stores 300 Matter Capacity 300 Sight Range 18 Robot Scan Range 14 Terrain Scan Range 16 Terrain Scan Density 10 ECM Strength 1 Armor Coverage 150 Evasion (%) 50 Targeting Accuracy 6 Recoil Reduction 2 Item Schematics ----------------- None Robot Schematics ------------------ None Fabricated ------------ Nothing Alien Tech Used ----------------- None Achievements -------------- None Challenges ------------ None Game ------ Seed ImpactAerolevCharge Manual? 0 Play Time 00:18:59 Cumulative 19.5 hours Start 2024.03.18 @ 08:00:01 End 2024.03.18 @ 08:18:09 Sessions 1 Manual Loads 0 Difficulty Rogue Special Mode None Game No. 38 Rogue 21 Adventurer 17 Explorer 0 Win Type - Total 0 Types 0/0/0/0/0/0/0/0/0 Lore% 14 Gallery% 23 Achievement% 16 Wizard Run 0 Options --------- Layout 1 ASCII 0 Keyboard 0 Movement Mouse Keybinds 0 Fullscreen 1 Font 24/Smallcaps Map View 50x35 Zoom Use 0% Tactical HUD 1 Map Filters NONE Filters NONE Steam 1 RUN: 41d76445-af27-476c-a39f-c7928601458d